[Event "Titled Tuesday Blitz February 22 Late 2022"]
[White "Ladan, Nicholas"]
[Black "Leitao, Rafael"]
[WhiteFideId "30918855"]
[BlackFideId "2101246"]
[WhiteElo "2362"]
[BlackElo "2609"]
[Result "0-1"]
[Round "01"]
[TimeControl "180+1"]
[Date "2022.02.23"]
[WhiteClock "0:00:04"]
[BlackClock "0:00:48"]

1. d4 {[%clk 0:02:59]}  Nf6 {[%clk 0:03:00]} 2. c4 {[%clk 0:02:59]}  e6 {[%clk 0:03:00]} 3. g3 {[%clk 0:02:59]}  d5 {[%clk 0:03:00]} 4. Nf3 {[%clk 0:02:59]}  Bb4+ {[%clk 0:02:57]} 5. Bd2 {[%clk 0:02:57]}  Be7 {[%clk 0:02:57]} 6. Bg2 {[%clk 0:02:57]}  O-O {[%clk 0:02:58]} 7. O-O {[%clk 0:02:57]}  c6 {[%clk 0:02:58]} 8. Bf4 {[%clk 0:02:52]}  Nbd7 {[%clk 0:02:57]} 9. Qc2 {[%clk 0:02:43]}  b6 {[%clk 0:02:56]} 10. Nbd2 {[%clk 0:02:41]}  Bb7 {[%clk 0:02:38]} 11. e4 {[%clk 0:02:40]}  dxc4 {[%clk 0:02:38]} 12. Nxc4 {[%clk 0:02:32]}  c5 {[%clk 0:02:38]} 13. Rfe1 {[%clk 0:01:57]}  cxd4 {[%clk 0:02:35]} 14. Nd6 {[%clk 0:01:44]}  Bxd6 {[%clk 0:02:24]} 15. Bxd6 {[%clk 0:01:43]}  Rc8 {[%clk 0:02:25]} 16. Qd1 {[%clk 0:01:28]}  Re8 {[%clk 0:02:08]} 17. e5 {[%clk 0:01:27]}  Ne4 {[%clk 0:02:08]} 18. Qxd4 {[%clk 0:01:23]}  Nxd6 {[%clk 0:02:08]} 19. Qxd6 {[%clk 0:01:24]}  Qc7 {[%clk 0:02:04]} 20. Rad1 {[%clk 0:01:13]}  Qxd6 {[%clk 0:01:57]} 21. Rxd6 {[%clk 0:01:14]}  Rc7 {[%clk 0:01:57]} 22. Red1 {[%clk 0:01:08]}  Nc5 {[%clk 0:01:51]} 23. Nd4 {[%clk 0:01:02]}  Bxg2 {[%clk 0:01:47]} 24. Kxg2 {[%clk 0:01:03]}  Ne4 {[%clk 0:01:26]} 25. Nb5 {[%clk 0:00:37]}  Rc2 {[%clk 0:01:25]} 26. Rd8 {[%clk 0:00:37]}  Kf8 {[%clk 0:01:22]} 27. Kf3 {[%clk 0:00:23]}  Nxf2 {[%clk 0:01:08]} 28. R1d2 {[%clk 0:00:23]}  Rxd8 {[%clk 0:00:57]} 29. Rxd8+ {[%clk 0:00:19]}  Ke7 {[%clk 0:00:57]} 30. Ra8 {[%clk 0:00:20]}  Nd3 {[%clk 0:00:55]} 31. Rxa7+ {[%clk 0:00:20]}  Kd8 {[%clk 0:00:53]} 32. Nd6 {[%clk 0:00:19]}  Nxe5+ {[%clk 0:00:53]} 33. Ke4 {[%clk 0:00:19]}  Re2+ {[%clk 0:00:51]} 34. Kd4 {[%clk 0:00:19]}  Nc6+ {[%clk 0:00:50]} 35. Kd3 {[%clk 0:00:19]}  Nxa7 {[%clk 0:00:48]} 36. Kxe2 {[%clk 0:00:19]}  Ke7 {[%clk 0:00:49]} 37. Nc4 {[%clk 0:00:19]}  b5 {[%clk 0:00:49]} 38. Ne3 {[%clk 0:00:18]}  Kd6 {[%clk 0:00:48]} 39. Kd3 {[%clk 0:00:19]}  Nc6 {[%clk 0:00:48]} 40. a3 {[%clk 0:00:18]}  Ke5 {[%clk 0:00:47]} 41. Kc3 {[%clk 0:00:16]}  f5 {[%clk 0:00:47]} 42. Ng2 {[%clk 0:00:16]}  g5 {[%clk 0:00:47]} 43. b3 {[%clk 0:00:14]}  f4 {[%clk 0:00:47]} 44. gxf4+ {[%clk 0:00:14]}  gxf4 {[%clk 0:00:48]} 45. a4 {[%clk 0:00:14]}  bxa4 {[%clk 0:00:48]} 46. bxa4 {[%clk 0:00:14]}  Ke4 {[%clk 0:00:49]} 47. Kc4 {[%clk 0:00:13]}  f3 {[%clk 0:00:49]} 48. Ne1 {[%clk 0:00:05]}  f2 {[%clk 0:00:48]} 49. Nf3 {[%clk 0:00:04]}  f1=Q+ {[%clk 0:00:48]} 0-1


[Site "https://www.chess.com"]

[Event "Titled Tuesday Blitz February 22 Late 2022"]
[White "Liang, Jason"]
[Black "Aukhatov, Roman"]
[WhiteFideId "30940303"]
[BlackFideId "44150768"]
[WhiteElo "1976"]
[BlackElo "2112"]
[Result "0-1"]
[Round "01"]
[TimeControl "180+1"]
[Date "2022.02.23"]
[WhiteClock "0:00:02"]
[BlackClock "0:00:27"]

1. c3 {[%clk 0:03:00]}  Nf6 {[%clk 0:02:57]} 2. d4 {[%clk 0:03:00]}  d5 {[%clk 0:02:57]} 3. Bf4 {[%clk 0:03:00]}  c5 {[%clk 0:02:49]} 4. e3 {[%clk 0:02:58]}  Qb6 {[%clk 0:02:23]} 5. Qb3 {[%clk 0:02:54]}  c4 {[%clk 0:02:20]} 6. Qc2 {[%clk 0:02:33]}  Nc6 {[%clk 0:02:19]} 7. Nd2 {[%clk 0:02:33]}  Bg4 {[%clk 0:02:14]} 8. e4 {[%clk 0:02:23]}  e6 {[%clk 0:02:13]} 9. Ngf3 {[%clk 0:02:16]}  Be7 {[%clk 0:02:09]} 10. Ne5 {[%clk 0:02:10]}  Bh5 {[%clk 0:02:04]} 11. f3 {[%clk 0:01:08]}  Nxe5 {[%clk 0:01:54]} 12. Bxe5 {[%clk 0:01:06]}  O-O {[%clk 0:01:53]} 13. Be2 {[%clk 0:00:43]}  Rfc8 {[%clk 0:01:51]} 14. O-O {[%clk 0:00:39]}  Qd8 {[%clk 0:01:48]} 15. Rae1 {[%clk 0:00:36]}  b5 {[%clk 0:01:46]} 16. f4 {[%clk 0:00:21]}  Bxe2 {[%clk 0:01:45]} 17. Rxe2 {[%clk 0:00:22]}  Nxe4 {[%clk 0:01:45]} 18. Nxe4 {[%clk 0:00:21]}  dxe4 {[%clk 0:01:46]} 19. Qxe4 {[%clk 0:00:22]}  f6 {[%clk 0:01:43]} 20. f5 {[%clk 0:00:18]}  exf5 {[%clk 0:01:39]} 21. Qxf5 {[%clk 0:00:16]}  fxe5 {[%clk 0:01:39]} 22. Qxe5 {[%clk 0:00:10]}  Bf6 {[%clk 0:01:35]} 23. Qe6+ {[%clk 0:00:10]}  Kh8 {[%clk 0:01:35]} 24. Rf5 {[%clk 0:00:07]}  a6 {[%clk 0:01:29]} 25. Re4 {[%clk 0:00:07]}  Qe8 {[%clk 0:01:19]} 26. Qd5 {[%clk 0:00:07]}  Qg6 {[%clk 0:01:19]} 27. Re6 {[%clk 0:00:03]}  Rd8 {[%clk 0:01:16]} 28. Qe4 {[%clk 0:00:02]}  Re8 {[%clk 0:01:07]} 29. g4 {[%clk 0:00:02]}  Rad8 {[%clk 0:00:55]} 30. d5 {[%clk 0:00:01]}  Rxe6 {[%clk 0:00:48]} 31. dxe6 {[%clk 0:00:02]}  Re8 {[%clk 0:00:48]} 32. Kf2 {[%clk 0:00:01]}  h6 {[%clk 0:00:38]} 33. Kf3 {[%clk 0:00:01]}  Re7 {[%clk 0:00:36]} 34. Qa8+ {[%clk 0:00:01]}  Qe8 {[%clk 0:00:36]} 35. Qxa6 {[%clk 0:00:02]}  Rxe6 {[%clk 0:00:35]} 36. Qb7 {[%clk 0:00:01]}  Re3+ {[%clk 0:00:35]} 37. Kf2 {[%clk 0:00:01]}  Re2+ {[%clk 0:00:35]} 38. Kg3 {[%clk 0:00:02]}  Qe3+ {[%clk 0:00:30]} 39. Rf3 {[%clk 0:00:02]}  Be5+ {[%clk 0:00:28]} 40. Kh4 {[%clk 0:00:03]}  Rxh2+ {[%clk 0:00:28]} 41. Rh3 {[%clk 0:00:02]}  Rxh3# {[%clk 0:00:27]} 0-1


[Site "https://www.chess.com"]

[Event "Titled Tuesday Blitz February 22 Late 2022"]
[White "Lin, Dachey"]
[Black "Gatterer, Florian"]
[WhiteFideId "2029650"]
[BlackFideId "811688"]
[WhiteElo "2714"]
[BlackElo "2218"]
[Result "1-0"]
[Round "01"]
[TimeControl "180+1"]
[Date "2022.02.23"]
[WhiteClock "0:01:08"]
[BlackClock "0:00:02"]

1. g4 {[%clk 0:02:21]}  e5 {[%clk 0:02:57]} 2. d4 {[%clk 0:02:21]}  e4 {[%clk 0:02:56]} 3. c4 {[%clk 0:02:15]}  c6 {[%clk 0:02:56]} 4. Nc3 {[%clk 0:02:15]}  d5 {[%clk 0:02:53]} 5. g5 {[%clk 0:02:13]}  Be7 {[%clk 0:02:39]} 6. h4 {[%clk 0:02:11]}  Be6 {[%clk 0:02:33]} 7. Bg2 {[%clk 0:02:10]}  h6 {[%clk 0:02:28]} 8. f4 {[%clk 0:02:08]}  hxg5 {[%clk 0:02:18]} 9. hxg5 {[%clk 0:02:06]}  Rxh1 {[%clk 0:02:16]} 10. Bxh1 {[%clk 0:02:07]}  Nd7 {[%clk 0:01:59]} 11. e3 {[%clk 0:01:54]}  Qb6 {[%clk 0:01:58]} 12. Nge2 {[%clk 0:01:52]}  Bg4 {[%clk 0:01:54]} 13. cxd5 {[%clk 0:01:51]}  cxd5 {[%clk 0:01:40]} 14. Nxd5 {[%clk 0:01:52]}  Bxe2 {[%clk 0:01:27]} 15. Nxb6 {[%clk 0:01:46]}  Bxd1 {[%clk 0:01:26]} 16. Nxa8 {[%clk 0:01:47]}  Ba4 {[%clk 0:00:48]} 17. Bxe4 {[%clk 0:01:42]}  Kd8 {[%clk 0:00:48]} 18. Bxb7 {[%clk 0:01:41]}  Bd6 {[%clk 0:00:42]} 19. b3 {[%clk 0:01:32]}  Bb5 {[%clk 0:00:41]} 20. a4 {[%clk 0:01:32]}  Bd3 {[%clk 0:00:40]} 21. Ba3 {[%clk 0:01:33]}  Bxa3 {[%clk 0:00:37]} 22. Rxa3 {[%clk 0:01:34]}  Ne7 {[%clk 0:00:37]} 23. b4 {[%clk 0:01:34]}  Bf5 {[%clk 0:00:32]} 24. Rc3 {[%clk 0:01:33]}  f6 {[%clk 0:00:31]} 25. gxf6 {[%clk 0:01:30]}  Nxf6 {[%clk 0:00:29]} 26. Nc7 {[%clk 0:01:31]}  Ng4 {[%clk 0:00:28]} 27. Nb5 {[%clk 0:01:30]}  a6 {[%clk 0:00:28]} 28. Bxa6 {[%clk 0:01:30]}  Nh2 {[%clk 0:00:27]} 29. Nd6 {[%clk 0:01:26]}  Be6 {[%clk 0:00:24]} 30. Be2 {[%clk 0:01:25]}  Nd5 {[%clk 0:00:21]} 31. Ra3 {[%clk 0:01:12]}  g6 {[%clk 0:00:08]} 32. Kf2 {[%clk 0:01:12]}  Ng4+ {[%clk 0:00:06]} 33. Bxg4 {[%clk 0:01:11]}  Bxg4 {[%clk 0:00:07]} 34. b5 {[%clk 0:01:09]}  Nf6 {[%clk 0:00:06]} 35. Nf7+ {[%clk 0:01:10]}  Ke7 {[%clk 0:00:05]} 36. Ne5 {[%clk 0:01:11]}  Be6 {[%clk 0:00:05]} 37. Nxg6+ {[%clk 0:01:08]}  Kd6 {[%clk 0:00:04]} 38. Ne5 {[%clk 0:01:09]}  Ne4+ {[%clk 0:00:04]} 39. Ke1 {[%clk 0:01:09]}  Bd5 {[%clk 0:00:04]} 40. a5 {[%clk 0:01:09]}  Kc7 {[%clk 0:00:03]} 41. a6 {[%clk 0:01:08]}  Kb8 {[%clk 0:00:02]} 42. b6 {[%clk 0:01:08]}  Ka8 {[%clk 0:00:02]} 43. b7+ {[%clk 0:01:08]}  Ka7 {[%clk 0:00:02]} 44. Nd7 {[%clk 0:01:08]} 1-0


[Site "https://www.chess.com"]

[Event "Titled Tuesday Blitz February 22 Late 2022"]
[White "Liu, Leonardo"]
[Black "Khumalo, Keith"]
[WhiteFideId "30965780"]
[BlackFideId "14319470"]
[WhiteElo "2224"]
[BlackElo "1992"]
[Result "0-1"]
[Round "01"]
[TimeControl "180+1"]
[Date "2022.02.23"]
[WhiteClock "0:00:19"]
[BlackClock "0:00:24"]

1. e4 {[%clk 0:03:00]}  c5 {[%clk 0:02:58]} 2. Nf3 {[%clk 0:02:57]}  d6 {[%clk 0:02:52]} 3. g3 {[%clk 0:02:57]}  Nf6 {[%clk 0:02:52]} 4. d3 {[%clk 0:02:56]}  g6 {[%clk 0:02:52]} 5. Bg2 {[%clk 0:02:56]}  Bg7 {[%clk 0:02:53]} 6. O-O {[%clk 0:02:56]}  O-O {[%clk 0:02:53]} 7. h3 {[%clk 0:02:53]}  Nc6 {[%clk 0:02:54]} 8. Be3 {[%clk 0:02:50]}  Rb8 {[%clk 0:02:49]} 9. Qd2 {[%clk 0:02:48]}  b5 {[%clk 0:02:49]} 10. Bh6 {[%clk 0:02:46]}  b4 {[%clk 0:02:48]} 11. Bxg7 {[%clk 0:02:44]}  Kxg7 {[%clk 0:02:49]} 12. a3 {[%clk 0:02:36]}  a5 {[%clk 0:02:48]} 13. axb4 {[%clk 0:02:36]}  axb4 {[%clk 0:02:49]} 14. Qd1 {[%clk 0:02:32]}  Ne8 {[%clk 0:02:32]} 15. Nbd2 {[%clk 0:02:32]}  Nc7 {[%clk 0:02:32]} 16. Ne1 {[%clk 0:02:29]}  Nb5 {[%clk 0:02:27]} 17. f4 {[%clk 0:02:29]}  Ncd4 {[%clk 0:02:24]} 18. Nef3 {[%clk 0:02:28]}  f5 {[%clk 0:02:23]} 19. Nxd4 {[%clk 0:02:28]}  Nxd4 {[%clk 0:02:23]} 20. Nf3 {[%clk 0:02:28]}  Nxf3+ {[%clk 0:02:04]} 21. Qxf3 {[%clk 0:02:25]}  Bb7 {[%clk 0:02:02]} 22. Ra7 {[%clk 0:02:22]}  Qb6 {[%clk 0:02:01]} 23. Rfa1 {[%clk 0:02:18]}  c4+ {[%clk 0:02:01]} 24. Kh2 {[%clk 0:02:15]}  cxd3 {[%clk 0:02:00]} 25. cxd3 {[%clk 0:02:13]}  fxe4 {[%clk 0:01:56]} 26. dxe4 {[%clk 0:02:14]}  Rfc8 {[%clk 0:01:56]} 27. Qb3 {[%clk 0:02:08]}  Ra8 {[%clk 0:01:30]} 28. Rxa8 {[%clk 0:01:59]}  Bxa8 {[%clk 0:01:31]} 29. Qe6 {[%clk 0:01:58]}  Qb7 {[%clk 0:01:10]} 30. Rxa8 {[%clk 0:01:45]}  Qxa8 {[%clk 0:01:00]} 31. Qxe7+ {[%clk 0:01:45]}  Kh8 {[%clk 0:00:59]} 32. Qf6+ {[%clk 0:01:43]}  Kg8 {[%clk 0:00:59]} 33. Qe6+ {[%clk 0:01:41]}  Kh8 {[%clk 0:00:58]} 34. Qf6+ {[%clk 0:01:35]}  Kg8 {[%clk 0:00:58]} 35. Qxd6 {[%clk 0:01:26]}  Qc6 {[%clk 0:00:50]} 36. Qxb4 {[%clk 0:01:25]}  Qc2 {[%clk 0:00:48]} 37. Qe7 {[%clk 0:01:21]}  h5 {[%clk 0:00:42]} 38. b4 {[%clk 0:01:10]}  Rc3 {[%clk 0:00:28]} 39. e5 {[%clk 0:01:00]}  Qf2 {[%clk 0:00:22]} 40. Qe6+ {[%clk 0:00:51]}  Kg7 {[%clk 0:00:23]} 41. Qf6+ {[%clk 0:00:49]}  Kh7 {[%clk 0:00:23]} 42. Qf7+ {[%clk 0:00:48]}  Kh6 {[%clk 0:00:24]} 43. Qf8+ {[%clk 0:00:46]}  Kh7 {[%clk 0:00:25]} 44. Qe7+ {[%clk 0:00:45]}  Kh6 {[%clk 0:00:24]} 45. Qg5+ {[%clk 0:00:30]}  Kh7 {[%clk 0:00:25]} 46. Qe7+ {[%clk 0:00:24]}  Kh6 {[%clk 0:00:25]} 47. Kh1 {[%clk 0:00:23]}  Qe1+ {[%clk 0:00:22]} 48. Kh2 {[%clk 0:00:22]}  Qxg3+ {[%clk 0:00:23]} 49. Kg1 {[%clk 0:00:19]}  Rc1# {[%clk 0:00:24]} 0-1


[Site "https://www.chess.com"]

[Event "Titled Tuesday Blitz February 22 Late 2022"]
[White "Lodici, Lorenzo"]
[Black "Piesik, Piotr"]
[WhiteFideId "884189"]
[BlackFideId "1136194"]
[WhiteElo "2265"]
[BlackElo "2232"]
[Result "1-0"]
[Round "01"]
[TimeControl "180+1"]
[Date "2022.02.22"]
[WhiteClock "0:00:05"]
[BlackClock "0:00:03"]

1. c4 {[%clk 0:02:58]}  g6 {[%clk 0:02:57]} 2. Nc3 {[%clk 0:02:57]}  Bg7 {[%clk 0:02:57]} 3. e4 {[%clk 0:02:57]}  c5 {[%clk 0:02:57]} 4. h4 {[%clk 0:02:57]}  h6 {[%clk 0:02:51]} 5. h5 {[%clk 0:02:56]}  g5 {[%clk 0:02:51]} 6. d3 {[%clk 0:02:55]}  Nc6 {[%clk 0:02:51]} 7. g4 {[%clk 0:02:52]}  e6 {[%clk 0:02:51]} 8. Nge2 {[%clk 0:02:51]}  Nge7 {[%clk 0:02:51]} 9. f4 {[%clk 0:02:51]}  gxf4 {[%clk 0:02:51]} 10. Bxf4 {[%clk 0:02:52]}  a6 {[%clk 0:02:48]} 11. Qd2 {[%clk 0:02:52]}  d6 {[%clk 0:02:44]} 12. Bh3 {[%clk 0:02:49]}  Ne5 {[%clk 0:02:42]} 13. O-O-O {[%clk 0:02:49]}  N7c6 {[%clk 0:02:40]} 14. Rdf1 {[%clk 0:02:45]}  Nb4 {[%clk 0:02:34]} 15. Bxe5 {[%clk 0:02:29]}  Bxe5 {[%clk 0:02:35]} 16. d4 {[%clk 0:02:29]}  cxd4 {[%clk 0:02:32]} 17. Nxd4 {[%clk 0:02:30]}  Qg5 {[%clk 0:02:29]} 18. Qxg5 {[%clk 0:02:27]}  hxg5 {[%clk 0:02:30]} 19. Nf3 {[%clk 0:02:21]}  Bf4+ {[%clk 0:02:06]} 20. Kb1 {[%clk 0:02:08]}  Bd7 {[%clk 0:02:05]} 21. a3 {[%clk 0:02:03]}  Nd3 {[%clk 0:02:03]} 22. Ne2 {[%clk 0:02:02]}  Be3 {[%clk 0:02:02]} 23. Kc2 {[%clk 0:02:00]}  Nc5 {[%clk 0:01:52]} 24. Nc3 {[%clk 0:01:57]}  Bc6 {[%clk 0:01:48]} 25. Re1 {[%clk 0:01:57]}  Bf4 {[%clk 0:01:48]} 26. b4 {[%clk 0:01:51]}  Na4 {[%clk 0:01:47]} 27. Nd5 {[%clk 0:01:51]}  exd5 {[%clk 0:01:37]} 28. exd5+ {[%clk 0:01:52]}  Kd7 {[%clk 0:01:34]} 29. dxc6+ {[%clk 0:01:51]}  bxc6 {[%clk 0:01:35]} 30. Nd4 {[%clk 0:01:35]}  c5 {[%clk 0:01:30]} 31. Nf5 {[%clk 0:01:35]}  cxb4 {[%clk 0:01:28]} 32. Re7+ {[%clk 0:01:31]}  Kd8 {[%clk 0:01:28]} 33. axb4 {[%clk 0:01:27]}  Rc8 {[%clk 0:01:26]} 34. Kb3 {[%clk 0:01:27]}  Nb6 {[%clk 0:01:26]} 35. Rxf7 {[%clk 0:01:19]}  Nxc4 {[%clk 0:01:22]} 36. Rd1 {[%clk 0:00:54]}  Nd2+ {[%clk 0:01:02]} 37. Kb2 {[%clk 0:00:50]}  Be5+ {[%clk 0:00:58]} 38. Ka3 {[%clk 0:00:50]}  Rc3+ {[%clk 0:00:55]} 39. Ka4 {[%clk 0:00:50]}  Nc4 {[%clk 0:00:55]} 40. b5 {[%clk 0:00:46]}  Nb2+ {[%clk 0:00:30]} 41. Ka5 {[%clk 0:00:38]}  Nxd1 {[%clk 0:00:26]} 42. b6 {[%clk 0:00:37]}  Kc8 {[%clk 0:00:17]} 43. Bf1 {[%clk 0:00:34]}  Ra3+ {[%clk 0:00:13]} 44. Kb4 {[%clk 0:00:34]}  Ra1 {[%clk 0:00:13]} 45. Bd3 {[%clk 0:00:29]}  Nc3 {[%clk 0:00:10]} 46. Ne7+ {[%clk 0:00:15]}  Kd7 {[%clk 0:00:09]} 47. Ng6+ {[%clk 0:00:15]}  Ke6 {[%clk 0:00:09]} 48. Nxh8 {[%clk 0:00:15]}  Nd5+ {[%clk 0:00:08]} 49. Kb3 {[%clk 0:00:15]}  Nxb6 {[%clk 0:00:07]} 50. Bf5+ {[%clk 0:00:15]}  Kd5 {[%clk 0:00:07]} 51. Ng6 {[%clk 0:00:15]}  Nc4 {[%clk 0:00:05]} 52. h6 {[%clk 0:00:12]}  Ra3+ {[%clk 0:00:04]} 53. Kc2 {[%clk 0:00:13]}  Rh3 {[%clk 0:00:04]} 54. h7 {[%clk 0:00:13]}  Ne3+ {[%clk 0:00:05]} 55. Kd2 {[%clk 0:00:13]}  Bd4 {[%clk 0:00:05]} 56. Bd3 {[%clk 0:00:11]}  Rh2+ {[%clk 0:00:05]} 57. Kc1 {[%clk 0:00:11]}  Bc3 {[%clk 0:00:05]} 58. Rf3 {[%clk 0:00:05]}  Rh1+ {[%clk 0:00:04]} 59. Bf1 {[%clk 0:00:05]}  Nxf1 {[%clk 0:00:05]} 60. Kc2 {[%clk 0:00:05]}  Rxh7 {[%clk 0:00:03]} 61. Kxc3 {[%clk 0:00:05]}  Rc7+ {[%clk 0:00:03]} 62. Kd3 {[%clk 0:00:05]}  Nh2 {[%clk 0:00:04]} 63. Rf5+ {[%clk 0:00:05]}  Ke6 {[%clk 0:00:03]} 64. Nf8+ {[%clk 0:00:06]}  Ke7 {[%clk 0:00:03]} 65. Ng6+ {[%clk 0:00:06]}  Ke6 {[%clk 0:00:04]} 66. Nf8+ {[%clk 0:00:04]}  Ke7 {[%clk 0:00:04]} 67. Nh7 {[%clk 0:00:04]}  Kd7 {[%clk 0:00:05]} 68. Rxg5 {[%clk 0:00:04]}  Rc5 {[%clk 0:00:04]} 69. Rg7+ {[%clk 0:00:04]}  Ke6 {[%clk 0:00:05]} 70. Ke4 {[%clk 0:00:03]}  Rc4+ {[%clk 0:00:05]} 71. Kd3 {[%clk 0:00:04]}  Rxg4 {[%clk 0:00:05]} 72. Ra7 {[%clk 0:00:04]}  Ra4 {[%clk 0:00:04]} 73. Nf8+ {[%clk 0:00:05]}  Kd5 {[%clk 0:00:04]} 74. Nd7 {[%clk 0:00:05]}  Ra3+ {[%clk 0:00:04]} 75. Kc2 {[%clk 0:00:05]}  Nf3 {[%clk 0:00:04]} 76. Nf6+ {[%clk 0:00:06]}  Kd4 {[%clk 0:00:04]} 77. Rd7 {[%clk 0:00:06]}  Kc5 {[%clk 0:00:03]} 78. Ne4+ {[%clk 0:00:06]}  Kb4 {[%clk 0:00:04]} 79. Rxd6 {[%clk 0:00:06]}  a5 {[%clk 0:00:04]} 80. Rb6+ {[%clk 0:00:05]}  Kc4 {[%clk 0:00:05]} 81. Nd6+ {[%clk 0:00:05]}  Kc5 {[%clk 0:00:05]} 82. Nc8 {[%clk 0:00:05]}  Nd4+ {[%clk 0:00:04]} 83. Kb2 {[%clk 0:00:05]}  Rh3 {[%clk 0:00:04]} 84. Rb8 {[%clk 0:00:05]}  Rh2+ {[%clk 0:00:04]} 85. Kb1 {[%clk 0:00:06]}  Kc4 {[%clk 0:00:04]} 86. Nb6+ {[%clk 0:00:06]}  Kd3 {[%clk 0:00:04]} 87. Na4 {[%clk 0:00:06]}  Kc4 {[%clk 0:00:01]} 88. Nb2+ {[%clk 0:00:06]}  Kc3 {[%clk 0:00:01]} 89. Nd1+ {[%clk 0:00:06]}  Kc4 {[%clk 0:00:01]} 90. Ne3+ {[%clk 0:00:06]}  Kd3 {[%clk 0:00:02]} 91. Nd5 {[%clk 0:00:07]}  Rh1+ {[%clk 0:00:02]} 92. Ka2 {[%clk 0:00:07]}  Nc6 {[%clk 0:00:03]} 93. Rb6 {[%clk 0:00:07]}  Nd4 {[%clk 0:00:02]} 94. Rb7 {[%clk 0:00:04]}  Kc4 {[%clk 0:00:02]} 95. Nb6+ {[%clk 0:00:05]}  Kc3 {[%clk 0:00:02]} 96. Na4+ {[%clk 0:00:05]}  Kd2 {[%clk 0:00:02]} 97. Rb2+ {[%clk 0:00:05]}  Kd3 {[%clk 0:00:02]} 98. Nc5+ {[%clk 0:00:06]}  Kc4 {[%clk 0:00:03]} 99. Na4 {[%clk 0:00:06]}  Nb5 {[%clk 0:00:03]} 100. Nb6+ {[%clk 0:00:05]}  Kc5 {[%clk 0:00:03]} 101. Nd7+ {[%clk 0:00:06]}  Kc4 {[%clk 0:00:03]} 102. Ne5+ {[%clk 0:00:06]}  Kc5 {[%clk 0:00:03]} 103. Nd3+ {[%clk 0:00:06]}  Kc4 {[%clk 0:00:04]} 104. Ne5+ {[%clk 0:00:06]}  Kc5 {[%clk 0:00:04]} 105. Rc2+ {[%clk 0:00:06]}  Kb4 {[%clk 0:00:04]} 106. Nc6+ {[%clk 0:00:04]}  Ka4 {[%clk 0:00:03]} 107. Rc4# {[%clk 0:00:05]} 1-0


[Site "https://www.chess.com"]

[Event "Titled Tuesday Blitz February 22 Late 2022"]
[White "Lopez Del Alamo, Antonio"]
[Black "Vovk, Orest"]
[WhiteFideId "2227339"]
[BlackFideId "14113490"]
[WhiteElo "2082"]
[BlackElo "2203"]
[Result "0-1"]
[Round "01"]
[TimeControl "180+1"]
[Date "2022.02.23"]
[WhiteClock "0:00:10"]
[BlackClock "0:01:20"]

1. e4 {[%clk 0:02:54]}  Nf6 {[%clk 0:02:58]} 2. e5 {[%clk 0:02:53]}  Nd5 {[%clk 0:02:58]} 3. d4 {[%clk 0:02:54]}  d6 {[%clk 0:02:57]} 4. c4 {[%clk 0:02:53]}  Nb6 {[%clk 0:02:55]} 5. exd6 {[%clk 0:02:54]}  exd6 {[%clk 0:02:55]} 6. Nc3 {[%clk 0:02:55]}  Be7 {[%clk 0:02:54]} 7. Nf3 {[%clk 0:02:53]}  O-O {[%clk 0:02:54]} 8. Be2 {[%clk 0:02:53]}  Bg4 {[%clk 0:02:55]} 9. b3 {[%clk 0:02:52]}  Bf6 {[%clk 0:02:55]} 10. O-O {[%clk 0:02:51]}  Nc6 {[%clk 0:02:55]} 11. Be3 {[%clk 0:02:50]}  Re8 {[%clk 0:02:54]} 12. Qd2 {[%clk 0:02:49]}  Qd7 {[%clk 0:02:50]} 13. Rac1 {[%clk 0:02:39]}  Ne7 {[%clk 0:02:43]} 14. Ne4 {[%clk 0:02:01]}  Qf5 {[%clk 0:02:35]} 15. Nxf6+ {[%clk 0:01:50]}  Qxf6 {[%clk 0:02:36]} 16. d5 {[%clk 0:01:21]}  Nf5 {[%clk 0:02:33]} 17. Bf4 {[%clk 0:00:54]}  Rxe2 {[%clk 0:02:13]} 18. Qxe2 {[%clk 0:00:49]}  Nd4 {[%clk 0:02:13]} 19. Nxd4 {[%clk 0:00:49]}  Bxe2 {[%clk 0:02:12]} 20. Nxe2 {[%clk 0:00:50]}  Re8 {[%clk 0:02:10]} 21. Be3 {[%clk 0:00:50]}  h6 {[%clk 0:02:07]} 22. Nd4 {[%clk 0:00:45]}  Nd7 {[%clk 0:02:05]} 23. h3 {[%clk 0:00:43]}  a6 {[%clk 0:02:04]} 24. b4 {[%clk 0:00:41]}  Re4 {[%clk 0:01:58]} 25. Rfd1 {[%clk 0:00:41]}  Ne5 {[%clk 0:01:57]} 26. c5 {[%clk 0:00:38]}  Kh7 {[%clk 0:01:51]} 27. a4 {[%clk 0:00:32]}  Ng6 {[%clk 0:01:43]} 28. a5 {[%clk 0:00:24]}  Nf4 {[%clk 0:01:40]} 29. Bxf4 {[%clk 0:00:15]}  Qxf4 {[%clk 0:01:39]} 30. c6 {[%clk 0:00:10]}  Rxd4 {[%clk 0:01:33]} 31. Rxd4 {[%clk 0:00:08]}  Qxd4 {[%clk 0:01:32]} 32. cxb7 {[%clk 0:00:09]}  Qxb4 {[%clk 0:01:31]} 33. Rxc7 {[%clk 0:00:10]}  Kg6 {[%clk 0:01:24]} 34. Rd7 {[%clk 0:00:10]}  Kf6 {[%clk 0:01:20]} 0-1


[Site "https://www.chess.com"]